bitfinex-derivatives/quotes_BTCF0:USTF0_20210409
["timestamp","ask_amount","ask_price","bid_price","bid_amount"]
[1617940021803,3.87369566,58119.0,58118.0,0.99083973]
[1617940023405,3.87369566,58119.0,58118.0,1.43162402]
[1617940023603,0.67369566,58119.0,58118.0,1.43162402]
[1617940024005,0.67369566,58119.0,58118.0,4.42752402]
[1617940024305,0.67369566,58119.0,58118.0,1.43162402]
[1617940024506,3.40009566,58119.0,58118.0,1.43162402]
[1617940024707,3.53716566,58119.0,58118.0,0.99083973]
[1617940025207,3.78281114,58119.0,58118.0,0.99083973]
[1617940025907,4.23244656,58119.0,58118.0,0.99083973]
[1617940027209,5.23244656,58119.0,58118.0,0.99083973]
[1617940031312,4.23244656,58119.0,58118.0,0.99083973]
[1617940031612,5.23244656,58119.0,58118.0,0.99083973]
[1617940033215,4.23244656,58119.0,58118.0,0.99083973]
[1617940033414,5.23244656,58119.0,58118.0,0.99083973]
[1617940034114,5.23244656,58119.0,58118.0,0.63092724]
[1617940035216,5.23244656,58119.0,58118.0,0.99188981]
[1617940041928,1.50604656,58119.0,58118.0,0.99188981]
[1617940042230,1.36897656,58119.0,58118.0,0.99188981]
[1617940042528,1.36897656,58119.0,58118.0,3.77668981]
[1617940042729,1.12333108,58119.0,58118.0,3.77668981]
[1617940043128,1.36898478,58119.0,58118.0,3.77668981]
[1617940043328,1.36898478,58119.0,58118.0,3.88394636]
[1617940043631,1.12333108,58119.0,58118.0,1.09914636]
[1617940043929,4.71957646,58119.0,58118.0,1.09914636]
[1617940050445,5.85504646,58119.0,58118.0,1.09914636]
[1617940057945,4.85504646,58119.0,58118.0,1.09914636]
[1617940058145,4.71957646,58119.0,58118.0,1.09914636]
[1617940061251,4.83618646,58119.0,58118.0,1.09914636]
[1617940062552,4.71957646,58119.0,58118.0,1.09914636]
[1617940065457,4.84189646,58119.0,58118.0,1.09914636]
[1617940071566,5.84189646,58119.0,58118.0,1.09914636]
[1617940072369,6.35352796,58119.0,58118.0,1.09914636]
[1617940072569,5.35352796,58119.0,58118.0,1.09914636]
[1617940074471,6.35352796,58119.0,58118.0,1.09914636]
[1617940074672,6.35352796,58119.0,58118.0,0.99188981]
[1617940075773,3.00292796,58119.0,58118.0,0.99188981]
[1617940075975,3.00292796,58119.0,58118.0,4.42658981]
[1617940076176,3.00292796,58119.0,58118.0,0.99188981]
[1617940077175,5.56962796,58119.0,58118.0,0.99188981]
[1617940077575,5.93812944,58119.0,58118.0,0.99188981]
[1617940078177,5.93812944,58119.0,58118.0,0.63092724]
[1617940081187,5.93812944,58119.0,58118.0,0.99233165]
[1617940082082,5.93812944,58119.0,58118.0,0.63092724]
[1617940084786,4.93812944,58119.0,58118.0,0.63092724]
[1617940086686,5.93812944,58119.0,58118.0,0.63092724]
[1617940088591,5.93812944,58119.0,58118.0,0.27]
[1617940090189,3.37142944,58119.0,58115.0,0.57139968]
[1617940090388,3.5738,58117.0,58115.0,0.30139968]
[1617940090690,1.63695206,58116.0,58115.0,0.30139968]
[1617940091188,2.25118514,58116.0,58115.0,0.57139968]
[1617940091489,3.25118514,58116.0,58115.0,0.57139968]
[1617940091689,3.35844169,58116.0,58115.0,0.57139968]
[1617940092889,3.35844169,58116.0,58115.0,0.27]
[1617940093191,3.35844169,58116.0,58115.0,0.57138614]
[1617940093394,3.35844169,58116.0,58115.0,0.30138614]
[1617940093594,3.35844169,58116.0,58115.0,0.57138614]
[1617940093893,3.35844169,58116.0,58115.0,0.30138614]
[1617940094192,3.35844169,58116.0,58115.0,0.57138614]
[1617940094694,3.35844169,58116.0,58115.0,0.27]
[1617940095094,3.35844169,58116.0,58114.0,0.30140515]
[1617940095495,1.4757964,58116.0,58115.0,0.27]
[1617940096000,3.11274198,58116.0,58115.0,0.57135369]
[1617940096397,3.11274198,58116.0,58115.0,0.30135369]
[1617940096799,3.11274198,58116.0,58115.0,0.57135369]
[1617940098100,3.11274198,58116.0,58115.0,0.27]
[1617940098605,3.11274198,58116.0,58114.0,0.30129748]
[1617940098801,3.11274198,58116.0,58115.0,0.27]
[1617940099000,1.4757964,58116.0,58115.0,0.27]
[1617940099402,3.11089074,58116.0,58115.0,0.27]
[1617940099901,3.11089074,58116.0,58112.0,0.57099234]
[1617940100101,3.11089074,58116.0,58113.0,0.27]
[1617940100503,3.11089074,58116.0,58112.0,0.30099234]
[1617940100703,1.12415207,58114.0,58113.0,0.27]
[1617940101503,2.12415207,58114.0,58113.0,0.27]
[1617940102205,2.3698451,58114.0,58113.0,0.27]
[1617940103107,2.73838768,58114.0,58113.0,0.27]
[1617940103508,3.24933425,58114.0,58113.0,0.27]
[1617940103909,3.24933425,58114.0,58111.0,0.30107659]
[1617940104307,0.2456963,58113.0,58112.0,0.27]
[1617940104506,1.0,58112.0,58111.0,0.30107659]
[1617940105007,1.0,58112.0,58111.0,0.57107659]
[1617940105208,2.36987161,58112.0,58111.0,0.57107659]
[1617940105609,5.91107161,58112.0,58111.0,0.57107659]
[1617940106110,6.27961952,58112.0,58111.0,0.57107659]
[1617940107012,6.27961952,58112.0,58111.0,0.27]
[1617940107412,6.27961952,58112.0,58110.0,0.30113542]
[1617940107712,6.27961952,58112.0,58111.0,0.27]
[1617940107913,4.5412,58112.0,58111.0,0.27]
[1617940108212,6.17644882,58112.0,58111.0,0.27]
[1617940108511,6.17644882,58112.0,58108.0,0.30128434]
[1617940108712,6.17644882,58112.0,58107.0,0.30138627]
[1617940109213,1.12402992,58108.0,58106.0,0.57132875]
[1617940109413,1.12402992,58108.0,58106.0,0.30132875]
[1617940109612,1.0,58107.0,58106.0,0.30132875]
[1617940109813,1.26251655,58107.0,58106.0,0.30132875]
[1617940110013,1.26251655,58107.0,58106.0,0.57132875]
[1617940110214,2.63226892,58107.0,58106.0,0.57132875]
[1617940110514,2.63226892,58107.0,58106.0,0.27]
[1617940110515,1.62984463,58107.0,58106.0,0.27]
[1617940110913,1.62984463,58107.0,58103.0,0.01]
[1617940111114,2.38490348,58107.0,58103.0,0.01]
[1617940111414,0.26251655,58107.0,58106.0,0.26]
[1617940111616,0.26251655,58107.0,58103.0,0.27]
[1617940111915,2.3849005,58107.0,58106.0,0.27]
[1617940112114,4.9747005,58107.0,58104.0,3.1084]
[1617940112413,4.9747005,58107.0,58104.0,3.1184]
[1617940112614,4.9747005,58107.0,58106.0,0.27]
[1617940112816,3.85231655,58107.0,58106.0,0.27]
[1617940113016,3.85231655,58107.0,58105.0,0.27]
[1617940113218,4.85231655,58107.0,58106.0,0.27]
[1617940113417,5.97471846,58107.0,58106.0,0.27]
[1617940113620,1.0,58106.0,58105.0,0.27]
[1617940113819,1.0,58106.0,58104.0,3.1084]
[1617940114321,1.36858677,58106.0,58105.0,0.27]
[1617940114620,2.12239801,58106.0,58105.0,0.27]
[1617940119322,1.0,58106.0,58105.0,0.27]
[1617940119724,2.12238707,58106.0,58105.0,0.27]
[1617940120825,1.12238707,58106.0,58105.0,0.27]
[1617940121025,2.12238707,58106.0,58105.0,0.27]
[1617940122826,1.0,58106.0,58105.0,0.27]
[1617940123125,2.12245349,58106.0,58105.0,0.27]
[1617940123930,1.6734925,58106.0,58105.0,0.27]
[1617940126230,1.6734925,58106.0,58105.0,0.57076844]
[1617940126530,1.0,58106.0,58105.0,0.57076844]
[1617940126730,1.67347265,58106.0,58105.0,0.27]
[1617940127830,1.0,58106.0,58105.0,0.27]
[1617940128230,1.6734775,58106.0,58105.0,0.27]
[1617940129233,1.0,58106.0,58105.0,0.27]
[1617940129434,1.67348289,58106.0,58105.0,0.27]
[1617940130233,0.67348289,58106.0,58105.0,0.27]
[1617940130435,1.67348289,58106.0,58105.0,0.27]
[1617940130838,2.12259744,58106.0,58105.0,0.27]
[1617940132942,2.12259744,58106.0,58105.0,0.5710061]
[1617940136448,2.12259744,58106.0,58105.0,0.27]
[1617940137651,2.12259744,58106.0,58105.0,0.57100448]
[1617940141355,4.84789744,58106.0,58105.0,0.27]
[1617940141755,4.84789744,58106.0,58103.0,0.30118185]
[1617940142156,4.84789744,58106.0,58105.0,0.57151375]
[1617940142157,3.7253,58106.0,58105.0,0.57151375]
[1617940142456,2.7253,58106.0,58105.0,0.30151375]
[1617940142757,5.36090046,58106.0,58105.0,0.26]
[1617940142956,5.36090046,58106.0,58104.0,0.30161451]
[1617940143157,5.36090046,58106.0,58102.0,0.30177863]
[1617940143356,7.06090046,58106.0,58102.0,0.30177863]
[1617940143556,1.0,58103.0,58102.0,0.30177863]
[1617940143757,4.13580265,58103.0,58100.0,0.30205445]
[1617940143957,0.10725655,58101.0,58100.0,0.30205445]
[1617940144158,1.43385257,58101.0,58086.0,0.36221196]
[1617940144759,0.36738229,58087.0,58084.0,0.36240989]
[1617940144958,0.49814229,58087.0,58084.0,0.36240989]
[1617940145459,0.49814229,58087.0,58085.0,0.27]
[1617940145659,0.24579523,58086.0,58085.0,0.27]
[1617940145958,0.35305178,58086.0,58085.0,0.27]
[1617940146159,0.72043798,58086.0,58085.0,0.33144899]
[1617940147862,1.72043798,58086.0,58085.0,0.33144899]
[1617940148665,1.10725655,58086.0,58085.0,0.27]
[1617940149067,1.10725655,58086.0,58083.0,0.01]
[1617940149967,3.8001,58084.0,58083.0,0.01]
[1617940151366,3.8001,58084.0,58083.0,0.07145097]
[1617940151567,3.8001,58084.0,58083.0,0.06145097]
[1617940151768,3.8001,58084.0,58083.0,0.08145097]
[1617940152068,3.8001,58084.0,58083.0,0.02]
[1617940152468,3.8001,58084.0,58082.0,0.27]
[1617940152767,3.8001,58084.0,58081.0,0.02]
[1617940153369,1.0,58084.0,58081.0,0.02]
[1617940153569,3.0352,58082.0,58081.0,0.02]
[1617940154170,4.0352,58082.0,58081.0,0.02]
[1617940154972,4.0352,58082.0,58081.0,0.08145121]
[1617940155273,4.0352,58082.0,58081.0,0.02]
[1617940155674,4.0352,58082.0,58079.0,0.26]
[1617940155975,4.0352,58082.0,58081.0,0.01]
[1617940155976,1.0,58082.0,58081.0,0.01]
[1617940156372,1.0,58082.0,58079.0,0.27]
[1617940156573,1.0,58082.0,58081.0,0.27]
[1617940156975,4.682,58082.0,58079.0,0.27]
[1617940157174,1.0,58082.0,58081.0,0.27]
[1617940157374,4.2108,58082.0,58081.0,0.27]
[1617940157575,4.57787697,58082.0,58079.0,0.27]
[1617940157975,4.57787697,58082.0,58077.0,0.36238958]
[1617940158177,0.10725655,58078.0,58077.0,0.36238958]
[1617940158475,1.10725655,58078.0,58076.0,0.36243925]
[1617940158776,1.10725655,58078.0,58077.0,0.33145271]
[1617940159179,1.11754752,58078.0,58075.0,0.36229908]
[1617940159377,1.11754752,58078.0,58077.0,0.27]
[1617940159577,4.75934752,58078.0,58077.0,0.27]
[1617940159778,4.75934752,58078.0,58076.0,0.01]
[1617940159978,0.0102913,58077.0,58074.0,0.36234727]
[1617940160179,1.0102913,58077.0,58074.0,0.36234727]
[1617940160379,1.0102913,58077.0,58059.0,0.10725655]
[1617940160380,1.0,58077.0,58072.0,0.36253921]
[1617940160581,1.0,58075.0,58072.0,0.36253921]
[1617940160882,2.5869,58073.0,58069.0,0.36278901]
[1617940161280,2.5869,58073.0,58067.0,0.36291623]
[1617940161580,2.5869,58073.0,58070.0,0.27]
[1617940161781,0.61279602,58072.0,58070.0,0.27]
[1617940161983,0.61279602,58072.0,58066.0,0.36300813]
[1617940162180,0.10725655,58067.0,58065.0,0.36301455]
[1617940162480,1.10725655,58067.0,58065.0,0.36301455]
[1617940162781,0.01029321,58066.0,58063.0,0.36313388]
[1617940163384,0.0051976,58064.0,58063.0,0.36313388]
[1617940163780,1.0051976,58064.0,58063.0,0.33146794]
[1617940165883,1.0,58064.0,58063.0,0.33146794]
[1617940166284,1.0102935,58064.0,58063.0,0.33146794]
[1617940167586,1.0,58064.0,58063.0,0.27]
[1617940167984,3.4945,58063.0,58062.0,0.01]
[1617940168286,3.64854,58063.0,58062.0,0.01]
[1617940168687,3.64854,58063.0,58060.0,0.36338066]
[1617940168887,3.64854,58063.0,58057.0,0.27]
[1617940168888,3.64854,58063.0,58059.0,0.36345234]
[1617940169086,3.64854,58063.0,58061.0,0.01]
[1617940169288,0.01029416,58061.0,58060.0,0.26]
[1617940169587,0.01029416,58061.0,58059.0,0.36345234]
[1617940169887,0.01029416,58061.0,58060.0,0.27]
[1617940170297,0.01029416,58061.0,58054.0,0.44426128]
[1617940170298,0.11755071,58061.0,58059.0,0.37347337]
[1617940170689,0.11755071,58061.0,58052.0,0.10725655]
[1617940170690,1.10725655,58061.0,58060.0,0.27]
[1617940170889,1.10725655,58061.0,58057.0,0.3635004]
[1617940171309,1.10939091,58061.0,58060.0,0.01]
[1617940171492,1.10939091,58061.0,58052.0,0.10725655]
[1617940171699,0.00213438,58060.0,58057.0,0.27]
[1617940171894,0.00213438,58060.0,58059.0,0.27]
[1617940172097,0.00518354,58060.0,58059.0,0.27]
[1617940172295,0.00518354,58060.0,58058.0,0.27]
[1617940172496,0.00518354,58060.0,58059.0,0.01]
[1617940172696,0.00518354,58060.0,58048.0,0.36275947]
[1617940173200,0.01026561,58060.0,58059.0,0.27]
[1617940173404,0.01026561,58060.0,58054.0,0.01]
[1617940173598,0.00518356,58060.0,58059.0,0.27]
[1617940173896,0.00518356,58060.0,58054.0,0.01]
[1617940174096,1.00518356,58060.0,58054.0,0.01]
[1617940174296,0.10725655,58055.0,58051.0,0.30232888]
[1617940174697,0.10725655,58055.0,58054.0,0.27]
[1617940176303,1.10725655,58055.0,58054.0,0.27]
[1617940176702,1.10939109,58055.0,58054.0,0.27]
[1617940177202,1.10939109,58055.0,58054.0,0.3223]
[1617940177402,1.10939109,58055.0,58054.0,0.27]
[1617940177603,1.10725655,58055.0,58054.0,0.27]
[1617940179406,4.67675655,58055.0,58054.0,0.27]
[1617940179706,4.68702333,58055.0,58054.0,0.27]
[1617940181609,4.67675655,58055.0,58054.0,0.27]
[1617940181807,4.60675655,58055.0,58054.0,0.27]
[1617940182209,1.34236928,58055.0,58054.0,0.27]
[1617940182410,1.30736928,58055.0,58051.0,0.27]
[1617940182614,1.00438716,58055.0,58051.0,0.27]
[1617940182810,1.00438716,58055.0,58054.0,0.27]
[1617940183129,1.00438716,58055.0,58051.0,0.27]
[1617940183130,0.00438716,58055.0,58051.0,0.27]
[1617940183311,1.00438716,58055.0,58054.0,0.27]
[1617940183512,0.00225655,58055.0,58054.0,0.27]
[1617940183714,0.00225655,58055.0,58051.0,0.27]
[1617940183915,0.00225655,58055.0,58044.0,0.01]
[1617940184112,3.3613,58052.0,58043.0,0.10725655]
[1617940184315,0.10725655,58044.0,58043.0,0.10725655]
[1617940184520,1.10725655,58044.0,58043.0,0.10725655]
[1617940184713,1.10725655,58044.0,58043.0,0.37725655]
[1617940187216,0.10725655,58044.0,58043.0,0.37725655]
[1617940187417,1.10725655,58044.0,58043.0,0.37725655]
[1617940188320,1.10725655,58044.0,58043.0,0.10725655]
[1617940199133,0.10725655,58044.0,58043.0,0.10725655]
[1617940200734,0.10725655,58044.0,58043.0,0.23506655]
[1617940203436,3.43665655,58044.0,58043.0,0.23506655]
[1617940203636,3.43665655,58044.0,58043.0,0.10725655]
[1617940210450,0.10725655,58044.0,58043.0,0.10725655]
[1617940214556,1.10725655,58044.0,58043.0,0.10725655]
[1617940214754,1.20873655,58044.0,58043.0,0.10725655]
[1617940214955,1.21392403,58044.0,58043.0,0.10725655]
[1617940219461,1.88270118,58044.0,58043.0,0.10725655]
[1617940220463,5.50850118,58044.0,58043.0,0.41120762]
[1617940222565,5.50850118,58044.0,58043.0,0.10725655]
[1617940230883,5.95871017,58044.0,58043.0,0.77534764]
[1617940231082,5.95871017,58044.0,58043.0,0.66809109]
[1617940231483,5.95871017,58044.0,58043.0,0.30367777]
[1617940232300,5.95871017,58044.0,58043.0,0.66796123]
[1617940233484,2.33291017,58044.0,58043.0,0.66796123]
[1617940236885,5.93871017,58044.0,58043.0,0.66796123]
[1617940237893,5.93871017,58044.0,58043.0,0.30367777]
[1617940237894,6.30769048,58044.0,58043.0,0.30367777]
[1617940238086,5.30769048,58044.0,58043.0,0.30367777]
[1617940238892,6.30769048,58044.0,58043.0,0.30367777]
[1617940240789,5.30769048,58044.0,58043.0,0.30367777]
[1617940241190,6.30769048,58044.0,58043.0,0.30367777]
[1617940242894,6.30769048,58044.0,58043.0,0.66764359]
[1617940243494,6.81960046,58044.0,58043.0,0.30367777]
[1617940244593,6.30769048,58044.0,58043.0,0.30367777]
[1617940245096,6.30769048,58044.0,58043.0,0.66724745]
[1617940246095,6.30769048,58044.0,58043.0,0.30367777]
[1617940246396,6.30769048,58044.0,58043.0,0.36517559]
[1617940246598,6.30769048,58044.0,58043.0,0.41667559]
[1617940247196,6.30769048,58044.0,58043.0,0.35517777]
[1617940247697,6.30769048,58044.0,58043.0,0.4166752]
[1617940248201,6.30769048,58044.0,58043.0,0.72847088]
[1617940248599,5.81959425,58044.0,58043.0,0.30367777]
[1617940248999,5.30769048,58044.0,58043.0,0.30367777]
[1617940249901,5.81959692,58044.0,58043.0,0.30367777]
[1617940250504,5.30769048,58044.0,58043.0,0.30367777]
[1617940252508,5.30769048,58044.0,58043.0,0.35467777]
[1617940252709,5.30769048,58044.0,58043.0,0.30367777]
[1617940253312,5.30769048,58044.0,58043.0,0.66695614]
[1617940254614,5.819686,58044.0,58043.0,0.30367777]
[1617940255015,6.819686,58044.0,58043.0,0.30367777]
[1617940256720,6.30769048,58044.0,58043.0,0.66687881]
[1617940257324,6.81968707,58044.0,58043.0,0.66687881]
[1617940257920,6.30769048,58044.0,58043.0,0.66687881]
[1617940259322,6.81968957,58044.0,58043.0,0.30367777]
[1617940261725,6.81968957,58044.0,58043.0,0.66657089]
[1617940262125,6.30769048,58044.0,58043.0,0.66657089]
[1617940262524,6.30769048,58044.0,58043.0,0.30367777]
[1617940262525,6.81969341,58044.0,58043.0,0.30367777]
[1617940264425,5.81969341,58044.0,58043.0,0.30367777]
[1617940268637,5.81969341,58044.0,58043.0,0.66660649]
[1617940270246,5.81969341,58044.0,58043.0,0.30367777]
[1617940270941,6.81969341,58044.0,58043.0,0.30367777]
[1617940273242,5.81969341,58044.0,58043.0,0.30367777]
[1617940275862,2.21389341,58044.0,58043.0,3.75297777]
[1617940276153,2.11241341,58044.0,58043.0,3.75297777]
[1617940276445,1.7434331,58044.0,58043.0,4.08447582]
[1617940276682,1.63617655,58044.0,58043.0,4.08447582]
[1617940277148,1.63617655,58044.0,58043.0,4.64723785]
[1617940277555,1.12417362,58044.0,58043.0,5.09025565]
[1617940277845,1.12417362,58044.0,58043.0,6.09025565]
[1617940278646,0.67396463,58044.0,58043.0,6.09025565]
[1617940279248,0.30635684,58044.0,58043.0,6.09025565]
[1617940279547,0.30635684,58044.0,58043.0,6.59233893]
[1617940280049,0.30635684,58044.0,58043.0,6.09025565]
[1617940280553,0.30635684,58044.0,58043.0,6.59224953]
[1617940282550,0.61486459,58064.0,58043.0,6.59224953]
[1617940282551,0.30705694,58045.0,58043.0,6.59224953]
[1617940282950,0.30705694,58045.0,58044.0,1.25800644]
[1617940283150,0.30705694,58045.0,58044.0,2.45800644]
[1617940283352,0.30705694,58045.0,58044.0,3.22991243]
[1617940285456,0.30704744,58046.0,58044.0,3.22991243]
[1617940285958,0.30704744,58046.0,58045.0,1.66701211]
[1617940286156,0.30704744,58046.0,58045.0,1.86701211]
[1617940286358,0.30704744,58046.0,58045.0,3.13701211]
[1617940287058,0.30704744,58046.0,58045.0,3.24426866]
[1617940287460,0.30704744,58046.0,58045.0,6.64796866]
[1617940288159,0.01033385,58046.0,58045.0,6.74019571]
[1617940288559,0.30704842,58047.0,58045.0,6.74019571]
[1617940288960,0.30704842,58047.0,58046.0,2.25776564]
[1617940289161,0.30704842,58047.0,58046.0,2.45776564]
[1617940289361,0.30704842,58047.0,58046.0,2.72776564]
[1617940289563,0.00521026,58047.0,58046.0,2.72776564]
[1617940291165,0.00214481,58047.0,58046.0,2.72776564]
[1617940291465,0.00214481,58047.0,58046.0,5.33416564]
[1617940292367,0.00214481,58047.0,58046.0,5.13416564]
[1617940292870,0.00214468,58048.0,58046.0,5.13416564]
[1617940293371,0.01031488,58050.0,58047.0,1.25507449]
[1617940293372,0.00214465,58050.0,58047.0,1.25507449]
[1617940293769,0.00214465,58050.0,58048.0,0.27]
[1617940293970,0.00214465,58050.0,58049.0,1.10151225]
[1617940294370,0.00214465,58050.0,58049.0,1.43299163]
[1617940294570,0.00214465,58050.0,58049.0,2.43299163]
[1617940294870,0.00214462,58051.0,58049.0,2.43299163]
[1617940295173,0.00214462,58051.0,58049.0,1.43299163]
[1617940295671,0.00214456,58052.0,58050.0,2.16271649]
[1617940295871,0.00214456,58052.0,58051.0,0.2]
[1617940296071,0.00214456,58052.0,58051.0,1.53147342]
[1617940296274,0.00214442,58054.0,58051.0,2.6320807]
[1617940296611,0.00520788,58055.0,58052.0,1.0]
[1617940296777,0.3698616,58060.0,58053.0,1.2]
[1617940296778,0.00214436,58060.0,58053.0,1.2]
[1617940296970,0.00214436,58060.0,58059.0,0.10725655]
[1617940297171,0.00214436,58060.0,58059.0,0.46269655]
[1617940297371,0.00214436,58060.0,58059.0,4.23959655]
[1617940298003,0.00214421,58064.0,58059.0,5.99134184]
[1617940298273,0.00214418,58067.0,58063.0,1.09801259]
[1617940298473,0.00214418,58067.0,58064.0,0.2]
[1617940298673,0.00214418,58067.0,58064.0,0.47]
[1617940298884,0.00214404,58069.0,58066.0,2.09755007]
[1617940299075,0.00214404,58069.0,58068.0,0.10725655]
[1617940299275,0.00214404,58069.0,58068.0,1.10725655]
[1617940299574,0.00214404,58069.0,58068.0,1.11725655]
[1617940299775,0.00214399,58070.0,58068.0,2.56810118]
[1617940300277,0.00214399,58072.0,58069.0,2.1580386]
[1617940300474,0.00214399,58072.0,58070.0,0.2]
[1617940300775,0.36764324,58078.0,58070.0,0.2]
[1617940300777,0.00213372,58082.0,58071.0,1.29764807]
[1617940300975,0.00213372,58082.0,58081.0,0.10725655]
[1617940301375,2.82943372,58082.0,58081.0,0.11725655]
[1617940301577,2.83756232,58082.0,58081.0,0.11725655]
[1617940301979,3.13222445,58082.0,58081.0,0.11725655]
[1617940302479,4.13222445,58082.0,58081.0,0.11725655]
[1617940302982,4.239481,58082.0,58081.0,0.11725655]
[1617940303678,3.239481,58082.0,58081.0,0.11725655]
[1617940306682,4.374401,58082.0,58081.0,0.11725655]
[1617940307284,4.7401232,58082.0,58081.0,0.11725655]
[1617940307884,3.7401232,58082.0,58081.0,0.11725655]
[1617940308188,4.7401232,58082.0,58081.0,0.11725655]
[1617940308387,3.7401232,58082.0,58081.0,0.11725655]
[1617940308989,0.9128232,58082.0,58081.0,0.11725655]
[1617940309189,1.7779032,58082.0,58081.0,3.24175655]
[1617940309389,0.7779032,58082.0,58081.0,3.24175655]
[1617940310131,1.02376093,58082.0,58081.0,3.24175655]
[1617940310322,0.91650438,58082.0,58081.0,3.24175655]
[1617940310521,0.30492445,58082.0,58081.0,3.24175655]
[1617940311101,0.00517933,58082.0,58081.0,3.24175655]
[1617940311492,0.00213262,58082.0,58081.0,3.24175655]
[1617940312293,0.00517921,58083.0,58081.0,3.24175655]
[1617940312493,0.00213055,58084.0,58081.0,0.11725655]
[1617940312793,0.00213055,58084.0,58083.0,3.5645]
[1617940312992,0.0051742,58084.0,58083.0,3.5645]
[1617940313295,0.0051742,58084.0,58083.0,3.8345]
[1617940313793,0.30447105,58084.0,58083.0,3.8345]
[1617940314193,0.01024617,58084.0,58083.0,3.8345]
[1617940314696,0.00517379,58084.0,58083.0,3.8345]
[1617940315295,0.00213036,58084.0,58083.0,3.8345]
[1617940318301,0.0051738,58084.0,58083.0,3.8345]
[1617940319100,0.01024615,58085.0,58083.0,3.8345]
[1617940319615,0.0051738,58084.0,58083.0,3.8345]
[1617940320906,0.01024615,58085.0,58083.0,3.8345]
[1617940321403,0.00517382,58084.0,58083.0,3.8345]
[1617940321904,0.01024615,58085.0,58083.0,3.8345]
[1617940322403,0.01024627,58084.0,58083.0,3.8345]
[1617940323205,0.30444618,58085.0,58083.0,3.8345]
[1617940323605,0.01024634,58084.0,58083.0,3.8345]
[1617940324106,0.30444876,58084.0,58083.0,3.8345]
[1617940326908,0.30455783,58085.0,58083.0,3.8345]
[1617940327108,0.30455783,58085.0,58083.0,0.38688]
[1617940327408,0.30455783,58085.0,58084.0,2.5798]
[1617940327409,0.36591707,58085.0,58084.0,2.5798]
[1617940327608,0.36590513,58086.0,58084.0,2.5798]
[1617940327809,0.36590513,58086.0,58084.0,2.8498]
[1617940328010,0.3049359,58085.0,58084.0,2.8498]
[1617940328911,0.01026254,58085.0,58084.0,2.8498]
[1617940329112,0.01026254,58085.0,58084.0,4.0498]
[1617940329512,0.3658951,58089.0,58084.0,4.0498]
[1617940329513,0.00213376,58087.0,58084.0,4.0498]
[1617940329711,0.00213376,58087.0,58084.0,3.0498]
[1617940329921,0.00213366,58090.0,58087.0,1.0]
[1617940330117,0.00213366,58090.0,58087.0,1.2]
[1617940330419,0.00213288,58091.0,58088.0,0.27]
[1617940331111,0.00213288,58091.0,58087.0,0.01]
[1617940331312,0.00517993,58091.0,58090.0,0.10725655]
[1617940331715,0.0102583,58092.0,58090.0,0.11725655]
[1617940332113,0.01025842,58091.0,58090.0,0.11725655]
[1617940332514,0.01025842,58091.0,58090.0,3.76675655]
[1617940334425,0.01025842,58091.0,58090.0,4.76675655]
[1617940334629,0.00213289,58091.0,58090.0,4.76675655]
[1617940335421,0.30479499,58095.0,58090.0,3.76675655]
[1617940335422,0.00213276,58094.0,58090.0,3.76675655]
[1617940336824,0.00213274,58095.0,58090.0,3.76675655]
[1617940337125,0.00213274,58095.0,58090.0,4.76675655]
[1617940337325,0.00213274,58094.0,58090.0,4.76675655]
[1617940337724,0.00213274,58095.0,58090.0,4.76675655]
[1617940338224,0.00213681,58091.0,58090.0,4.76675655]
[1617940339125,0.00213681,58091.0,58090.0,3.76675655]
[1617940339726,0.00213681,58091.0,58090.0,4.76675655]
[1617940340128,0.00213681,58091.0,58090.0,4.96675655]
[1617940340530,0.00213598,58092.0,58090.0,4.96675655]
[1617940340929,0.00213598,58092.0,58090.0,3.96675655]
[1617940341430,0.00213595,58093.0,58090.0,3.96675655]
[1617940342032,0.00518731,58094.0,58090.0,3.96675655]
[1617940342033,0.00213595,58094.0,58090.0,3.96675655]
[1617940342230,0.00213595,58094.0,58093.0,1.0]
[1617940342434,0.00213595,58094.0,58093.0,4.1137]
[1617940342631,0.00213595,58094.0,58093.0,4.3837]
[1617940343132,0.00518725,58096.0,58093.0,4.3837]
[1617940343133,0.00213593,58096.0,58093.0,4.3837]
[1617940343530,0.00213593,58096.0,58093.0,3.3837]
[1617940344531,0.00213585,58097.0,58093.0,3.3837]
[1617940345031,0.00213585,58098.0,58093.0,3.3837]
[1617940345230,0.00213585,58098.0,58097.0,0.10725655]
[1617940345430,0.00213585,58098.0,58097.0,0.21104655]
[1617940345632,0.00213585,58098.0,58097.0,0.48104655]
[1617940346232,0.00518707,58099.0,58097.0,0.48104655]
[1617940346533,0.00213586,58098.0,58097.0,0.48104655]
[1617940346737,0.01027243,58100.0,58097.0,0.48104655]
[1617940347039,0.00213567,58098.0,58097.0,0.48104655]
[1617940347834,0.00213567,58098.0,58097.0,0.68104655]
[1617940348437,0.00213562,58099.0,58097.0,1.68104655]
[1617940348640,0.00213562,58099.0,58097.0,0.68104655]
[1617940348841,0.00213562,58098.0,58097.0,0.68104655]
[1617940349341,0.3061979,58098.0,58097.0,0.97839856]
[1617940349842,0.6736187,58098.0,58097.0,0.97839856]
[1617940350942,0.6736187,58098.0,58097.0,0.77839856]
[1617940351445,0.3061979,58098.0,58097.0,0.48104655]
[1617940353650,0.3061979,58098.0,58097.0,0.7780764]
[1617940354045,0.3061979,58098.0,58097.0,3.22114655]
[1617940354445,0.3061979,58098.0,58097.0,3.51815287]
[1617940356247,0.3061979,58098.0,58097.0,3.22114655]
[1617940358051,0.3061979,58098.0,58097.0,3.51839475]
[1617940358948,0.30589425,58099.0,58097.0,3.51839475]
[1617940359347,0.01029499,58098.0,58097.0,3.22114655]
[1617940359848,0.01029499,58098.0,58097.0,3.5184236]
[1617940360250,0.30589425,58099.0,58097.0,3.5184236]
[1617940361051,0.30589425,58099.0,58098.0,0.29716055]
[1617940361252,0.30581307,58100.0,58098.0,0.29716055]
[1617940361451,0.30581307,58100.0,58098.0,0.56716055]
[1617940361651,0.30581361,58099.0,58098.0,0.56716055]
[1617940362553,0.30581361,58099.0,58098.0,0.27]
[1617940366759,0.30573205,58100.0,58098.0,0.27]
[1617940366960,0.30573205,58100.0,58099.0,2.6637]
[1617940367161,0.30573205,58100.0,58099.0,2.8637]
[1617940367361,0.30573205,58100.0,58099.0,4.1337]
[1617940367563,0.00213931,58101.0,58099.0,4.7866037]
[1617940368062,0.00213931,58101.0,58099.0,3.7866037]
[1617940368361,0.00213931,58101.0,58100.0,1.0]
[1617940368562,0.00213927,58102.0,58100.0,1.55813766]
[1617940368866,0.00213925,58103.0,58101.0,1.0]